bitfinex/quotes_SOLUSD_20220103
["timestamp","ask_amount","ask_price","bid_price","bid_amount"]
[1641248008443,83.7178596,169.43,169.34,9.6161]
[1641248009042,82.0495,169.43,169.34,9.6161]
[1641248009242,82.0495,169.43,169.35,1.2406]
[1641248009446,82.0495,169.43,169.36,8.8555]
[1641248009770,83.7178596,169.43,169.37,23.65470682]
[1641248010044,83.7178596,169.43,169.37,24.41470682]
[1641248010443,82.0495,169.43,169.37,24.41470682]
[1641248012444,82.0495,169.43,169.37,33.26980682]
[1641248014844,73.1946,169.43,169.37,33.26980682]
[1641248015044,2.9891596,169.44,169.37,33.26980682]
[1641248015444,1.3208,169.44,169.37,33.26980682]
[1641248016345,10.1751,169.44,169.37,33.26980682]
[1641248020352,1.3208,169.44,169.37,33.26980682]
[1641248020551,1.6683596,169.45,169.37,33.26980682]
[1641248020749,1.6683596,169.46,169.37,33.26980682]
[1641248020954,1.6683596,169.46,169.39,8.8541]
[1641248021354,1.6683596,169.46,169.39,9.6141]
[1641248021552,8.8543,169.44,169.39,9.6141]
[1641248022454,8.8543,169.44,169.39,0.76]
[1641248022657,8.8543,169.44,169.38,35.4835]
[1641248026478,8.8543,169.44,169.38,26.6292]
[1641248027681,10.5226596,169.44,169.38,26.6292]
[1641248028379,8.8543,169.44,169.38,26.6292]
[1641248030682,8.8543,169.44,169.37,8.855]
[1641248030884,57.6292,169.38,169.21,9.0727]
[1641248031087,57.6292,169.38,169.29,23.5071]
[1641248031284,57.6292,169.38,169.26,6.16321833]
[1641248031486,101.5469,169.37,169.24,1.3074]
[1641248031688,102.7851,169.37,169.25,26.91676039]
[1641248031885,103.5451,169.37,169.26,6.16499048]
[1641248032082,8.8613,169.31,169.26,6.16499048]
[1641248033485,8.8613,169.31,169.26,6.66499048]
[1641248034084,8.8613,169.31,169.26,6.92499048]
[1641248036787,8.8609,169.33,169.26,6.92499048]
[1641248040697,31.4716,169.35,169.26,6.92499048]
[1641248041095,8.86,169.35,169.26,6.92499048]
[1641248041495,80.1446596,169.37,169.26,15.78439048]
[1641248041694,26.6292,169.38,169.27,2.68169368]
[1641248041896,26.6292,169.38,169.27,3.18169368]
[1641248042195,26.6292,169.38,169.28,1.42669368]
[1641248042395,26.6292,169.38,169.28,26.89659368]
[1641248042596,26.6292,169.38,169.28,27.15659368]
[1641248042795,26.6292,169.38,169.29,1.42669368]
[1641248042998,26.6292,169.38,169.29,1.68669368]
[1641248043197,26.6292,169.38,169.29,2.18669368]
[1641248043598,26.6292,169.38,169.31,8.8568]
[1641248043807,26.6292,169.38,169.32,30.94989767]
[1641248043999,26.6292,169.38,169.32,31.20989767]
[1641248044200,26.6292,169.38,169.32,31.70989767]
[1641248044799,23.6292,169.38,169.32,31.70989767]
[1641248051505,23.6292,169.38,169.33,1.42669368]
[1641248051902,23.6292,169.38,169.33,2.18669368]
[1641248052303,23.6292,169.38,169.35,8.8537]
[1641248052503,23.6292,169.38,169.35,9.1137]
[1641248052704,23.6292,169.38,169.36,1.42669368]
[1641248052905,23.6292,169.38,169.36,1.92669368]
[1641248053103,23.6292,169.38,169.36,2.18669368]
[1641248053306,23.6292,169.38,169.36,0.76]
[1641248053502,23.6292,169.38,169.36,0.5]
[1641248053704,23.6292,169.38,169.33,24.1928]
[1641248054108,23.6292,169.38,169.34,1.42669368]
[1641248054404,23.6292,169.38,169.33,24.1928]
[1641248055205,23.6292,169.38,169.33,24.6928]
[1641248055605,23.6292,169.38,169.35,8.8549]
[1641248056005,23.6292,169.38,169.35,9.6149]
[1641248059417,23.6292,169.38,169.37,8.8534]
[1641248059816,23.6292,169.38,169.37,9.6134]
[1641248061217,8.8542,169.46,169.37,9.6134]
[1641248061218,7.4834,169.46,169.37,9.6134]
[1641248068152,7.4834,169.46,169.37,9.3534]
[1641248068354,7.4834,169.46,169.37,0.5]
[1641248068654,7.7434,169.46,169.37,0.5]
[1641248068854,7.7434,169.46,169.34,1.7603]
[1641248069056,7.7434,169.46,169.34,1.2603]
[1641248069258,1.358,169.45,169.34,1.7603]
[1641248069461,8.8559,169.42,169.34,10.6162]
[1641248069660,1.358,169.45,169.34,10.6162]
[1641248069860,1.358,169.45,169.34,0.5]
[1641248070060,1.618,169.45,169.33,24.4328]
[1641248071062,1.618,169.45,169.33,24.6928]
[1641248071564,1.358,169.45,169.33,33.5493]
[1641248071964,1.358,169.45,169.33,34.97599368]
[1641248072362,25.2181596,169.46,169.33,34.97599368]
[1641248072363,25.2181596,169.46,169.34,1.294]
[1641248072562,23.5498,169.46,169.34,1.554]
[1641248072762,23.5498,169.46,169.34,2.054]
[1641248073571,8.8543,169.45,169.34,2.054]
[1641248073764,8.8543,169.45,169.38,8.8538]
[1641248073964,8.8543,169.45,169.39,22.77215255]
[1641248074367,8.8543,169.45,169.39,23.53215255]
[1641248074766,32.4031,169.46,169.39,32.38545255]
[1641248077172,32.4031,169.46,169.39,0.76]
[1641248077370,32.4031,169.46,169.39,0.26]
[1641248077571,32.4031,169.46,169.38,9.614]
[1641248077971,32.4031,169.46,169.38,0.76]
[1641248078370,32.4031,169.46,169.37,2.0579]
[1641248078571,32.4031,169.46,169.37,1.5579]
[1641248078773,32.4031,169.46,169.37,2.0579]
[1641248079571,32.4031,169.46,169.37,10.9124]
[1641248086476,32.4031,169.46,169.37,10.6524]
[1641248087776,8.8527,169.47,169.37,10.6524]
[1641248087976,8.8527,169.47,169.37,10.9124]
[1641248088177,8.8527,169.47,169.38,24.2906]
[1641248088377,8.8527,169.47,169.39,8.8533]
[1641248088580,8.8527,169.47,169.39,9.1133]
[1641248088777,8.8527,169.47,169.39,9.6133]
[1641248089780,8.8527,169.47,169.39,10.939]
[1641248091385,8.8527,169.47,169.39,10.679]
[1641248091687,8.8527,169.47,169.39,1.8257]
[1641248092314,8.8527,169.47,169.39,0.5]
[1641248092687,8.8527,169.47,169.38,33.9045]
[1641248094590,8.8527,169.47,169.39,1.2725]
[1641248094991,8.8527,169.47,169.39,2.0325]
[1641248099992,8.8527,169.47,169.39,10.8857]
[1641248106399,8.8527,169.47,169.39,2.0325]
[1641248108726,8.8527,169.47,169.39,10.8859]
[1641248115538,9.1127,169.47,169.37,6.15547757]
[1641248115836,9.6127,169.47,169.32,1.2563]
[1641248116035,24.0595,169.46,169.32,1.2563]
[1641248116236,8.8271,169.39,169.32,1.2563]
[1641248116839,8.8271,169.39,169.32,1.7563]
[1641248117038,8.8271,169.39,169.32,1.5163]
[1641248117238,8.8271,169.39,169.32,1.7563]
[1641248118538,8.8271,169.39,169.32,2.0163]
[1641248118738,8.8271,169.39,169.32,0.5]
[1641248118940,8.8271,169.39,169.31,6.65656454]
[1641248119139,8.8271,169.39,169.31,6.15656454]
[1641248119340,8.8271,169.39,169.25,87.46311678]
[1641248119539,8.8603,169.33,169.25,27.71704435]
[1641248119739,23.1322,169.38,169.26,6.15763055]
[1641248119740,24.3639,169.38,169.26,6.15763055]
[1641248120039,24.6239,169.38,169.26,6.15763055]
[1641248120242,29.5341,169.37,169.26,6.15763055]
[1641248120441,30.0341,169.37,169.26,6.65763055]
[1641248120642,30.2941,169.37,169.26,0.5]
[1641248120840,30.2941,169.37,169.25,28.21704435]
[1641248121243,30.0341,169.37,169.25,28.21704435]
[1641248121440,30.0341,169.37,169.25,28.47704435]
[1641248121642,8.8606,169.32,169.25,28.47704435]
[1641248122641,8.8606,169.32,169.25,37.33734435]
[1641248122844,8.8606,169.32,169.25,9.6203]
[1641248123245,8.8606,169.32,169.25,0.76]
[1641248123443,8.8606,169.32,169.24,0.5]
[1641248123645,8.8606,169.32,169.24,0.26]
[1641248123843,8.8606,169.32,169.23,12.82021734]
[1641248124644,8.8606,169.32,169.23,21.68141734]
[1641248125043,8.8606,169.32,169.23,23.36811102]
[1641248125846,8.86,169.34,169.23,23.36811102]
[1641248126044,8.86,169.34,169.24,23.8855]
[1641248126244,8.86,169.34,169.26,8.8597]
[1641248126446,8.86,169.34,169.26,9.3597]
[1641248126744,8.86,169.34,169.26,9.6197]
[1641248128947,8.86,169.34,169.26,0.76]
[1641248129149,8.86,169.34,169.25,10.9558]
[1641248135287,8.86,169.34,169.23,21.18141734]
[1641248135488,9.12,169.34,169.23,12.32021734]
[1641248135689,9.62,169.34,169.23,12.32021734]
[1641248135889,9.62,169.34,169.22,12.32799275]
[1641248137994,32.9892,169.34,169.22,12.58799275]
[1641248140094,32.2292,169.34,169.22,12.58799275]
[1641248140296,32.2292,169.34,169.23,1.42669368]
[1641248140498,32.2292,169.34,169.23,0.26]
[1641248140696,32.2292,169.34,169.23,0.76]
[1641248140899,32.2292,169.34,169.23,26.696]
[1641248141901,32.2292,169.34,169.23,28.12269368]
[1641248142904,32.2292,169.34,169.23,35.5572]
[1641248143105,32.2292,169.34,169.23,0.76]
[1641248143505,32.2292,169.34,169.22,12.82799275]
[1641248145229,32.2292,169.34,169.22,21.94969275]
[1641248145429,32.2292,169.34,169.22,23.37638643]
[1641248145830,8.86,169.34,169.23,24.7148]
[1641248146030,8.86,169.34,169.23,24.9748]
[1641248146236,8.86,169.34,169.24,1.42669368]
[1641248146430,8.86,169.34,169.24,1.92669368]
[1641248146630,8.86,169.34,169.24,2.18669368]
[1641248147233,8.86,169.34,169.24,0.76]
[1641248147430,8.86,169.34,169.24,0.26]
[1641248147631,8.86,169.34,169.23,25.4748]
[1641248148231,8.86,169.34,169.23,0.76]
[1641248148430,8.86,169.34,169.23,0.26]
[1641248148629,8.86,169.34,169.22,21.94979275]
[1641248151532,8.86,169.34,169.22,21.68979275]
[1641248152235,8.86,169.34,169.23,1.42669368]
[1641248152436,8.86,169.34,169.23,10.78809368]
[1641248152633,8.86,169.34,169.23,9.3614]
[1641248152834,8.86,169.34,169.23,33.9532]
[1641248153034,8.86,169.34,169.23,34.2132]
[1641248156036,8.86,169.34,169.23,35.5021]
[1641248156237,8.86,169.34,169.23,35.2421]
[1641248156638,9.12,169.34,169.23,25.0918]
[1641248157039,9.12,169.34,169.23,0.5]
[1641248157239,9.12,169.34,169.22,12.82799275]
[1641248157940,9.12,169.34,169.22,13.08799275]
[1641248158340,1.3343,169.33,169.22,13.08799275]
[1641248158542,8.8621,169.3,169.22,13.08799275]
[1641248158742,8.8621,169.3,169.22,21.94989275]
[1641248167048,8.8621,169.3,169.22,23.29719275]
[1641248171755,8.8613,169.31,169.22,23.29719275]
[1641248176164,8.8613,169.31,169.22,24.72388643]
[1641248177267,8.8613,169.31,169.23,22.9053]
[1641248177465,8.8613,169.31,169.24,8.8611]
[1641248177871,8.8613,169.31,169.24,9.6211]
[1641248181981,8.8613,169.31,169.24,11.04779368]
[1641248182380,8.8613,169.31,169.24,9.6211]
[1641248182580,8.8613,169.31,169.24,11.04779368]
[1641248184385,8.8613,169.31,169.24,9.6211]
[1641248186183,8.8613,169.31,169.24,11.04779368]
[1641248188388,8.8613,169.31,169.24,10.78779368]
[1641248189188,8.8613,169.31,169.24,12.11429368]
[1641248189990,8.8613,169.31,169.24,12.37429368]
[1641248191794,8.8613,169.31,169.24,10.9476]
[1641248193298,8.8613,169.31,169.24,2.0865]
[1641248193499,9.1213,169.31,169.24,0.5]
[1641248193904,9.1213,169.31,169.22,12.82799275]
[1641248194100,33.7794,169.31,169.22,12.82799275]
[1641248194900,35.0805,169.31,169.22,12.82799275]
[1641248196311,34.8205,169.31,169.22,12.82799275]
[1641248196701,34.8205,169.31,169.23,1.351]
[1641248196900,34.8205,169.31,169.23,1.851]
[1641248197106,34.8205,169.31,169.23,2.111]
[1641248197330,34.8205,169.31,169.23,25.4079]
[1641248198201,34.8205,169.31,169.23,0.76]
[1641248198401,35.0805,169.31,169.22,12.82799275]
[1641248202008,35.0805,169.31,169.22,13.08799275]
[1641248203611,35.0805,169.31,169.22,0.5]
[1641248203808,35.5805,169.31,169.21,0.5]
[1641248204208,35.5805,169.31,169.2,25.45968834]
[1641248204608,35.5805,169.31,169.2,25.71968834]
[1641248212544,35.5805,169.31,169.2,25.45968834]
[1641248212941,36.74719368,169.31,169.2,24.95968834]
[1641248213141,36.74719368,169.31,169.2,25.45968834]
[1641248213340,35.3205,169.31,169.2,25.45968834]
[1641248214041,34.8205,169.31,169.2,25.71968834]
[1641248214241,35.0805,169.31,169.2,25.71968834]
[1641248215745,35.0805,169.31,169.2,26.96658834]
[1641248215945,35.5805,169.31,169.2,26.96658834]
[1641248216146,34.8205,169.31,169.2,35.83038834]
[1641248216949,34.8205,169.31,169.21,22.7428]
[1641248217451,35.0805,169.31,169.21,23.5028]
[1641248217949,35.0805,169.31,169.22,1.3043]
[1641248218350,35.0805,169.31,169.22,2.0643]
[1641248218549,35.0805,169.31,169.2,33.82378834]
[1641248218750,35.0805,169.31,169.2,24.95968834]
[1641248218751,42.6795,169.31,169.2,24.95968834]
[1641248219151,42.6795,169.31,169.11,1.2762]
[1641248219353,79.1565,169.3,169.11,23.8367]
[1641248219551,8.8666,169.21,169.11,23.8367]
[1641248220154,8.8666,169.21,169.12,29.38837149]
[1641248220358,8.8666,169.21,169.13,24.5864]
[1641248220753,8.8666,169.21,169.15,8.8665]
[1641248220952,8.8666,169.21,169.15,9.6265]
[1641248221154,8.8666,169.21,169.15,0.76]
[1641248221554,8.8666,169.21,169.13,25.3464]
[1641248221956,15.9986,169.21,169.13,0.5]
[1641248222153,15.9986,169.21,169.06,355.08634989]
[1641248222355,15.9986,169.21,169.11,0.5]
[1641248222958,15.9986,169.21,169.11,24.4111119]
[1641248223355,15.9986,169.21,169.11,25.1711119]
[1641248223557,16.4986,169.21,169.11,24.6711119]
[1641248224758,16.4986,169.21,169.11,24.4111119]
[1641248226761,16.4986,169.21,169.07,26.8184]
[1641248226963,16.4986,169.21,169.08,0.5]
[1641248227161,1.242,169.2,169.08,0.5]
[1641248227360,8.8717,169.14,169.05,104.2965]
[1641248227561,9.1317,169.14,169.05,24.6996]
[1641248227763,9.1317,169.14,169.05,52.56154925]
[1641248228561,9.1317,169.14,169.05,61.43314925]
[1641248230565,9.1317,169.14,169.05,52.30154925]
[1641248230768,9.1317,169.14,169.05,0.5]
[1641248230964,9.1317,169.14,169.04,1.3358]
[1641248230965,9.1317,169.14,169.04,1.8358]
[1641248231166,9.1317,169.14,169.04,1.3358]
[1641248231368,9.6317,169.14,169.04,1.8358]
[1641248231567,9.1317,169.14,169.04,1.8358]
[1641248232367,9.6317,169.14,169.04,1.8358]
[1641248232566,9.6317,169.14,169.04,2.0958]
[1641248233568,9.1317,169.14,169.04,2.0958]
[1641248234370,8.8717,169.14,169.04,2.0958]
[1641248234768,8.8717,169.14,169.04,26.2392]
[1641248235667,8.8717,169.14,169.04,35.1113]
[1641248237972,9.1317,169.14,169.04,35.1113]
[1641248240499,8.8717,169.14,169.04,35.1113]
[1641248240905,8.8698,169.15,169.04,36.53799368]
[1641248241101,24.813,169.2,169.04,36.53799368]
[1641248242102,8.868,169.19,169.04,36.53799368]
[1641248244005,8.8671,169.2,169.04,51.12007461]
[1641248244204,74.4398,169.23,169.05,22.9957]
[1641248244404,74.4398,169.23,169.06,24.5646]
[1641248244605,74.4398,169.23,169.14,39.29875502]
[1641248245004,74.4398,169.23,169.14,40.05875502]
[1641248245204,74.6998,169.23,169.14,40.05875502]
[1641248245406,8.8664,169.22,169.14,40.05875502]
[1641248253616,8.8664,169.22,169.14,9.6263]
[1641248254514,8.8664,169.22,169.14,36.69033198]
[1641248259419,8.8664,169.22,169.14,9.6263]
[1641248260420,8.8664,169.22,169.14,37.75462065]
[1641248260621,8.8664,169.22,169.14,39.18131433]
[1641248260823,8.8664,169.22,169.14,37.75462065]
[1641248263024,8.8654,169.23,169.14,37.75462065]
[1641248263227,1.3436,169.26,169.15,24.20279368]
[1641248263423,25.7706,169.27,169.19,8.8645]
[1641248263824,25.7706,169.27,169.19,9.6245]
[1641248264025,25.7706,169.27,169.19,11.05119368]
[1641248264328,24.4193,169.27,169.19,11.05119368]
[1641248264528,24.4193,169.27,169.19,9.6245]
[1641248264728,33.543,169.27,169.19,0.26]
[1641248264951,34.043,169.27,169.17,0.5]
[1641248265151,34.043,169.27,169.16,1.3608]
[1641248265353,34.043,169.27,169.16,1.8608]
[1641248266155,8.8659,169.22,169.16,10.7268]
[1641248266362,8.8659,169.22,169.16,10.9868]
[1641248271362,24.801,169.25,169.16,10.9868]
[1641248271363,8.8653,169.23,169.16,10.9868]
[1641248271962,8.8653,169.23,169.16,12.41349368]
[1641248272762,8.8653,169.23,169.16,10.9868]
[1641248273162,8.8653,169.23,169.17,1.42669368]
[1641248273464,8.8653,169.23,169.17,11.05199368]
[1641248273962,8.8648,169.24,169.17,11.05199368]
[1641248279770,8.8643,169.25,169.17,11.05199368]
[1641248280070,8.8643,169.25,169.18,1.42669368]
[1641248280270,73.1998,169.26,169.18,1.42669368]
[1641248280471,1.2742,169.28,169.21,30.46650329]
[1641248280672,29.5462,169.3,169.21,30.46650329]
[1641248280875,8.8631,169.28,169.21,31.22650329]
[1641248281274,8.8631,169.28,169.21,30.96650329]
[1641248282577,8.8631,169.28,169.22,8.8629]
[1641248282978,8.8631,169.28,169.22,9.6229]
[1641248286883,8.8631,169.28,169.22,11.04959368]
[1641248287084,8.8631,169.28,169.22,9.6229]
[1641248289282,8.8631,169.28,169.22,0.76]
[1641248289482,8.8631,169.28,169.22,0.5]
[1641248289684,8.8631,169.28,169.21,31.22650329]
[1641248290486,8.8631,169.28,169.21,30.72650329]
[1641248290685,8.8631,169.28,169.21,31.22650329]
[1641248290888,9.3631,169.28,169.21,31.22650329]
[1641248291318,8.8631,169.28,169.21,31.22650329]
[1641248292915,8.8631,169.28,169.21,40.08990329]
[1641248296022,9.1231,169.28,169.21,30.96650329]
[1641248296621,8.8631,169.28,169.21,30.96650329]
[1641248298021,8.8631,169.28,169.21,31.22650329]
[1641248298419,8.8631,169.28,169.21,30.96650329]
[1641248301220,8.8631,169.28,169.21,31.22650329]
[1641248303423,9.1231,169.28,169.21,31.22650329]
[1641248309535,8.8631,169.28,169.21,31.22650329]
[1641248310439,8.8631,169.28,169.21,40.09010329]
[1641248311434,8.8631,169.28,169.21,41.51679697]
[1641248311634,8.8631,169.28,169.21,40.09010329]
[1641248320649,10.1448,169.29,169.21,41.51679697]
[1641248323553,8.8624,169.29,169.21,41.51679697]
[1641248326880,8.8624,169.29,169.21,40.09010329]
[1641248329179,8.8624,169.29,169.21,41.51679697]
[1641248329582,10.094,169.31,169.21,41.51679697]
[1641248329787,10.094,169.31,169.22,23.8468]
[1641248329981,10.094,169.31,169.25,8.8614]
[1641248330381,10.094,169.31,169.25,9.6214]
[1641248335088,8.8618,169.31,169.25,9.6214]
[1641248342696,8.8608,169.32,169.25,9.6214]
[1641248343899,8.8608,169.32,169.25,11.04809368]
[1641248344101,8.8608,169.32,169.25,9.6214]
[1641248345299,10.2084,169.33,169.25,9.6214]
[1641248346301,10.2084,169.33,169.25,11.04809368]
[1641248346502,10.2084,169.33,169.25,9.6214]
[1641248347301,1.6683596,169.37,169.25,9.6214]
[1641248347504,1.6683596,169.37,169.26,24.52319368]
[1641248347702,1.6683596,169.37,169.31,30.50040326]
[1641248347902,1.6683596,169.4,169.31,31.00040326]
[1641248348103,1.6683596,169.4,169.32,23.9834]
[1641248348304,1.6683596,169.4,169.32,25.41009368]
[1641248348502,1.6683596,169.4,169.33,1.42669368]
[1641248348704,1.6683596,169.4,169.36,8.8555]
[1641248348902,1.6683596,169.4,169.36,9.3555]
[1641248349105,1.2719,169.44,169.36,9.6155]
[1641248349304,8.8553,169.45,169.36,9.6155]
[1641248350004,9.1153,169.45,169.36,9.6155]
[1641248350804,8.8553,169.45,169.36,9.6155]
[1641248351204,35.5342596,169.46,169.36,9.6155]
[1641248351406,36.0342596,169.46,169.36,9.6155]
[1641248352204,27.1794596,169.46,169.36,9.6155]
[1641248352404,2.1683596,169.46,169.36,11.04219368]
[1641248353106,2.1683596,169.46,169.38,34.79899998]
[1641248353508,1.6683596,169.46,169.38,35.55899998]
[1641248354606,11.7787596,169.48,169.38,35.55899998]
[1641248355406,10.1104,169.48,169.39,22.9458]
[1641248355607,10.1104,169.48,169.39,23.2058]
[1641248355807,10.1104,169.48,169.39,23.7058]
[1641248356006,10.1104,169.48,169.39,32.5595]
[1641248356206,1.2565,169.48,169.39,32.5595]
[1641248356506,1.2565,169.48,169.39,32.0595]
[1641248357307,1.2565,169.48,169.39,33.3359]
[1641248357706,1.2565,169.48,169.39,33.8359]
[1641248361143,10.1105,169.48,169.39,32.5595]
[1641248361346,10.1105,169.48,169.39,23.4458]
[1641248361543,10.3705,169.48,169.39,23.4458]
[1641248361743,10.3705,169.48,169.39,22.9458]
[1641248361946,10.3705,169.48,169.37,8.8544]
[1641248362145,23.3806,169.47,169.37,9.3544]
[1641248362544,23.6406,169.47,169.37,9.3544]
[1641248362744,23.6406,169.47,169.37,9.6144]
[1641248363146,24.1406,169.47,169.37,9.6144]
[1641248363345,23.6406,169.47,169.37,9.6144]
[1641248363746,32.4953,169.47,169.37,9.6144]
[1641248365145,32.2353,169.47,169.37,9.6144]
[1641248365346,32.4953,169.47,169.37,9.6144]
[1641248367448,32.4953,169.47,169.37,0.76]
[1641248367850,32.4953,169.47,169.36,9.6153]
[1641248368251,1.2921,169.46,169.36,32.3755]
[1641248368855,1.2921,169.46,169.37,10.2054]
[1641248369054,1.2921,169.46,169.37,10.4654]
[1641248369257,1.2921,169.46,169.37,16.4804]
[1641248369454,1.2921,169.46,169.38,23.0433]
[1641248369854,1.2921,169.46,169.38,23.8033]
[1641248370855,1.2921,169.46,169.38,32.6571]
[1641248373358,8.8547,169.47,169.38,32.6571]
[1641248373558,81.7926,169.49,169.38,32.6571]
[1641248373762,82.0526,169.49,169.38,32.6571]
[1641248374160,81.7926,169.49,169.38,32.6571]
[1641248374363,81.7926,169.49,169.39,10.1173]
[1641248374563,81.7926,169.49,169.39,10.3773]
[1641248374766,81.7926,169.49,169.39,10.8773]
[1641248374962,81.7926,169.49,169.4,24.5269]
[1641248375463,81.7926,169.49,169.4,25.2869]
[1641248377597,1.2577,169.5,169.4,34.14]
[1641248377797,31.6941,169.51,169.4,35.56669368]
[1641248377996,22.8415,169.51,169.4,35.56669368]
[1641248378197,22.8415,169.51,169.4,34.14]
[1641248378397,22.8415,169.51,169.41,1.42669368]
[1641248378596,22.8415,169.51,169.43,8.8515]
[1641248378799,22.8415,169.51,169.43,33.7317]
[1641248378996,22.8415,169.51,169.43,34.4917]
[1641248379399,24.19,169.51,169.43,34.4917]
[1641248381402,24.19,169.51,169.43,35.768]
[1641248382202,8.8518,169.52,169.43,35.768]
[1641248382402,72.9932,169.56,169.43,35.768]
[1641248382609,1.2982,169.55,169.43,35.768]
[1641248383405,1.2982,169.55,169.43,37.19469368]
[1641248386908,8.8485,169.59,169.43,37.19469368]
[1641248387107,25.4888,169.58,169.43,37.19469368]
[1641248388506,77.1199,169.6,169.43,37.19469368]
[1641248388708,1.3391,169.61,169.43,37.19469368]
[1641248388910,1.3391,169.61,169.44,59.18]
[1641248389107,1.6683596,169.64,169.52,8.8453]
[1641248389308,1.6683596,169.65,169.52,31.36057824]
[1641248389507,0.5,169.64,169.53,24.9997]
[1641248390008,0.5,169.64,169.53,25.7597]
[1641248390206,10.591,169.66,169.53,25.7597]
[1641248390607,1.7463,169.66,169.58,8.8438]
[1641248390809,3.4146596,169.66,169.58,8.8438]
[1641248391006,3.4146596,169.66,169.58,9.6038]
[1641248391206,12.2589596,169.66,169.58,0.76]
[1641248391408,11.7589596,169.66,169.58,0.26]
[1641248391607,11.7589596,169.66,169.53,55.2397]
[1641248391808,12.0189596,169.66,169.53,55.2397]
[1641248392008,23.9532,169.65,169.56,8.8445]
[1641248392208,23.9532,169.65,169.53,25.7597]
[1641248392414,24.2132,169.65,169.53,25.7597]
[1641248392612,23.9532,169.65,169.53,25.7597]
[1641248392813,24.2132,169.65,169.53,25.7597]
[1641248393023,1.3602,169.64,169.53,25.7597]
[1641248393314,10.2056,169.64,169.55,8.8455]
[1641248393512,1.3602,169.64,169.55,9.1055]
[1641248393713,1.3602,169.64,169.55,9.6055]
[1641248394414,10.2055,169.64,169.55,9.6055]
[1641248395015,1.3602,169.64,169.55,9.6055]
[1641248395416,77.8848,169.67,169.55,9.6055]
[1641248395616,79.2203,169.67,169.56,23.6996]
[1641248395815,79.2203,169.67,169.58,8.8435]
[1641248396015,79.2203,169.67,169.58,9.1035]
[1641248396217,79.2203,169.67,169.58,9.6035]
[1641248396715,88.0641,169.67,169.58,0.76]
[1641248396916,88.3241,169.67,169.56,25.4499]
[1641248397317,88.3241,169.67,169.56,24.1996]
[1641248397517,88.8241,169.67,169.56,24.1996]
[1641248397716,88.3241,169.67,169.56,24.1996]
[1641248397919,88.8241,169.67,169.56,24.1996]
[1641248398120,88.7941,169.67,169.56,24.1996]
[1641248398318,88.7941,169.67,169.56,24.4596]
[1641248398519,88.7941,169.67,169.56,33.3045]
[1641248398719,88.0341,169.67,169.56,33.3045]
[1641248399320,88.2941,169.67,169.56,33.3045]
[1641248400123,23.6637,169.66,169.56,33.3045]
[1641248402026,23.6637,169.66,169.57,1.3484]
[1641248402224,23.6637,169.66,169.57,10.1925]
[1641248402424,32.5081,169.66,169.57,10.9525]
[1641248402626,33.793,169.66,169.57,10.9525]
[1641248404443,33.793,169.66,169.58,24.6202]
[1641248404843,33.793,169.66,169.58,25.1202]
[1641248405044,33.793,169.66,169.58,25.3802]
[1641248405653,33.793,169.66,169.58,25.1202]
[1641248405846,34.053,169.66,169.58,25.1202]
[1641248407049,33.793,169.66,169.58,25.3802]
[1641248407252,33.793,169.66,169.58,34.2242]
[1641248407550,23.6637,169.66,169.59,27.05545786]
[1641248407952,1.3398,169.7,169.59,27.81545786]
[1641248408555,10.1824,169.7,169.6,8.8424]
[1641248408754,10.1824,169.7,169.61,23.8746]
[1641248408953,10.1824,169.7,169.61,24.6346]
[1641248409154,10.6824,169.7,169.61,24.6346]
[1641248409354,10.1824,169.7,169.61,24.6346]
[1641248410757,10.1824,169.7,169.61,33.4769]
[1641248412455,10.1824,169.7,169.62,1.2895]